bitfinex/quotes_BTCUSD_20250607
["timestamp","ask_amount","ask_price","bid_price","bid_amount"]
[1749309700710,5.24511299,105620.0,105610.0,0.00014375]
[1749309701138,5.22741785,105620.0,105610.0,0.00014375]
[1749309701360,5.22741743,105620.0,105610.0,0.00014375]
[1749309701579,5.26479444,105620.0,105610.0,0.29198375]
[1749309701811,5.27142959,105620.0,105610.0,0.29198375]
[1749309702023,5.28912327,105620.0,105610.0,0.29198375]
[1749309702234,5.27342327,105620.0,105610.0,0.29198375]
[1749309702661,5.25573001,105620.0,105610.0,0.29198375]
[1749309702913,5.22741822,105620.0,105610.0,0.29198375]
[1749309703131,5.2207822,105620.0,105610.0,0.29198375]
[1749309703347,4.84113896,105620.0,105610.0,0.29198375]
[1749309703569,5.2451144,105620.0,105610.0,0.29198375]
[1749309703817,5.24511431,105620.0,105610.0,0.30728375]
[1749309704486,5.22741824,105620.0,105610.0,0.30728375]
[1749309704703,5.22741826,105620.0,105610.0,0.30728375]
[1749309704913,5.2207822,105620.0,105610.0,0.30728375]
[1749309705147,5.24511443,105620.0,105610.0,0.30728375]
[1749309705370,5.21664856,105620.0,105610.0,0.30728375]
[1749309705803,5.21664856,105620.0,105610.0,0.32278375]
[1749309706223,5.21665173,105620.0,105610.0,0.32278375]
[1749309706435,5.21001483,105620.0,105610.0,0.32278375]
[1749309706653,5.21665219,105620.0,105610.0,0.32278375]
[1749309707299,0.68787383,105620.0,105610.0,0.32278375]
[1749309707520,1.09475267,105620.0,105610.0,0.72278375]
[1749309707735,1.09475861,105620.0,105610.0,0.72278375]
[1749309707949,1.47601985,105620.0,105610.0,0.72278375]
[1749309708157,1.46937772,105620.0,105610.0,0.72278375]
[1749309708365,1.0544012,105620.0,105610.0,0.72278375]
[1749309708578,1.05143956,105620.0,105610.0,0.72278375]
[1749309708828,1.06249879,105620.0,105610.0,0.72278375]
[1749309709031,1.07209597,105620.0,105610.0,0.72278375]
[1749309709479,0.668179,105620.0,105610.0,0.72278375]
[1749309709694,0.97569649,105620.0,105610.0,0.72278375]
[1749309709911,0.96609931,105620.0,105610.0,0.72278375]
[1749309710132,0.96905562,105620.0,105610.0,0.72278375]
[1749309710348,0.97568919,105620.0,105610.0,0.72278375]
[1749309710600,0.96905562,105620.0,105610.0,0.32278375]
[1749309710815,0.97568919,105620.0,105610.0,0.41298375]
[1749309711030,0.97568867,105620.0,105610.0,0.81298375]
[1749309711247,0.5717717,105620.0,105610.0,0.81298375]
[1749309711468,0.57177043,105620.0,105610.0,0.81298375]
[1749309711680,0.55408222,105620.0,105610.0,0.81298375]
[1749309711903,0.57177052,105620.0,105610.0,0.81298375]
[1749309712110,0.56513741,105620.0,105610.0,0.81298375]
[1749309712317,0.56880898,105620.0,105610.0,0.81298375]
[1749309712753,0.56513741,105620.0,105610.0,0.81298375]
[1749309713193,0.56513736,105620.0,105610.0,0.81298375]
[1749309713439,0.56513785,105620.0,105610.0,1.08460661]
[1749309713659,0.5380899,105620.0,105610.0,1.27398261]
[1749309713890,0.37140226,105620.0,105610.0,1.31185673]
[1749309714130,0.02193454,105620.0,105610.0,1.31185673]
[1749309714344,0.36193454,105620.0,105610.0,1.31185673]
[1749309714561,0.01246709,105620.0,105610.0,1.31185673]
[1749309714779,0.02193436,105620.0,105610.0,1.31185673]
[1749309714995,0.03140181,105620.0,105610.0,1.31185673]
[1749309715206,0.02193436,105620.0,105610.0,1.31185673]
[1749309715419,0.03140181,105620.0,105610.0,1.31185673]
[1749309715639,0.03040181,105620.0,105610.0,1.31185673]
[1749309715853,0.01893436,105620.0,105610.0,1.71562678]
[1749309716070,0.02840181,105620.0,105610.0,1.71562678]
[1749309716504,0.02840181,105620.0,105610.0,1.31185673]
[1749309716720,0.03786953,105620.0,105610.0,1.31185673]
[1749309721004,0.03786944,105620.0,105610.0,1.31185673]
[1749309721217,0.04733716,105620.0,105610.0,1.31185673]
[1749309725564,0.03786944,105620.0,105610.0,1.31185673]
[1749309725779,0.04733716,105620.0,105610.0,1.31185673]
[1749309726292,0.03786944,105620.0,105610.0,1.31185673]
[1749309726918,0.04733716,105620.0,105610.0,1.31185673]
[1749309728002,0.03786944,105620.0,105610.0,1.31185673]
[1749309728431,0.04733716,105620.0,105610.0,1.31185673]
[1749309728667,0.03786944,105620.0,105610.0,1.31185673]
[1749309729303,0.04733716,105620.0,105610.0,1.31185673]
[1749309729721,0.03786944,105620.0,105610.0,1.31185673]
[1749309730817,0.04733716,105620.0,105610.0,1.31185673]
[1749309734146,0.03786944,105620.0,105610.0,1.31185673]
[1749309734560,0.04733716,105620.0,105610.0,1.31185673]
[1749309735184,0.04733788,105620.0,105610.0,1.31185673]
[1749309735389,0.04733788,105620.0,105610.0,1.71554883]
[1749309736718,0.03787007,105620.0,105610.0,1.71554883]
[1749309737674,0.02840235,105620.0,105610.0,1.71554883]
[1749309737858,0.03787007,105620.0,105610.0,1.71554883]
[1749309738500,0.02840235,105620.0,105610.0,1.71554883]
[1749309738689,0.01893472,105620.0,105610.0,1.71554883]
[1749309739011,0.03786998,105620.0,105610.0,1.71554883]
[1749309739231,0.02840226,105620.0,105610.0,1.71554883]
[1749309739455,0.03786998,105620.0,105610.0,1.71554883]
[1749309740804,0.02840226,105620.0,105610.0,1.71554883]
[1749309741016,0.03786998,105620.0,105610.0,1.71554883]
[1749309744581,0.05560085,105620.0,105610.0,1.71554883]
[1749309745450,0.01773087,105620.0,105610.0,1.7060794]
[1749309745674,0.56891896,105630.0,105620.0,0.23969324]
[1749309745920,0.58664992,105630.0,105620.0,0.23969324]
[1749309746136,0.56595802,105630.0,105620.0,0.23969324]
[1749309746339,0.58664993,105630.0,105620.0,0.63969324]
[1749309746556,0.56595802,105630.0,105620.0,0.63969324]
[1749309746769,0.57091894,105630.0,105620.0,0.63969324]
[1749309746987,0.58864963,105630.0,105620.0,0.63969324]
[1749309747211,0.58864985,105630.0,105620.0,0.63969324]
[1749309747416,0.56795802,105630.0,105620.0,0.63969324]
[1749309747632,0.58865056,105630.0,105620.0,0.63969324]
[1749309747894,0.57291892,105630.0,105620.0,0.63969324]
[1749309748118,0.38061708,105630.0,105620.0,1.05285261]
[1749309748338,0.41077773,105630.0,105620.0,1.05285261]
[1749309748564,0.38061708,105630.0,105620.0,1.05285261]
[1749309748781,0.38061708,105630.0,105620.0,1.32447547]
[1749309749024,0.39931097,105630.0,105620.0,1.32447547]
[1749309749232,0.39104438,105630.0,105620.0,1.32447547]
[1749309749454,0.40877764,105630.0,105620.0,1.32547547]
[1749309749665,0.40677764,105630.0,105620.0,1.32547547]
[1749309749915,0.39435034,105630.0,105620.0,1.32547547]
[1749309750133,0.01768442,105630.0,105620.0,1.72916757]
[1749309750353,0.0271508,105630.0,105620.0,1.32547547]
[1749309751455,0.03661744,105630.0,105620.0,1.32547547]
[1749309751698,0.04608417,105630.0,105620.0,1.32647547]
[1749309751913,0.05555099,105630.0,105620.0,1.32647547]
[1749309752372,0.06501799,105630.0,105620.0,1.70763547]
[1749309752616,0.0650179,105630.0,105620.0,1.70763547]
[1749309753057,0.06501852,105630.0,105620.0,1.32647547]
[1749309753283,0.25435866,105630.0,105620.0,1.30390337]
[1749309753707,0.25435866,105630.0,105620.0,1.30390346]
[1749309753925,0.06501852,105630.0,105620.0,1.31337073]
[1749309754789,0.25435866,105630.0,105620.0,1.2944361]
[1749309755024,0.24489202,105630.0,105620.0,1.30390346]
[1749309755512,0.23542529,105630.0,105620.0,1.2944361]
[1749309755728,0.03661779,105630.0,105620.0,1.2944361]
[1749309755949,0.23542484,105630.0,105620.0,1.30390346]
[1749309756180,0.23542484,105630.0,105620.0,1.2944361]
[1749309758520,0.23542484,105630.0,105620.0,1.5400361]
[1749309759157,0.23542484,105630.0,105620.0,1.54003628]
[1749309759372,0.24489184,105630.0,105620.0,1.54950364]
[1749309763875,0.23542529,105630.0,105620.0,1.54950382]
[1749309765321,0.23542529,105630.0,105620.0,1.54003628]
[1749309765523,0.23542529,105630.0,105620.0,1.51810382]
[1749309765737,0.22595847,105630.0,105620.0,1.51810382]
[1749309766110,0.22595847,105630.0,105620.0,1.50863628]
[1749309766449,0.21649156,105630.0,105620.0,1.49916865]
[1749309766660,0.20702456,105630.0,105620.0,1.49916865]
[1749309767321,0.22475338,105630.0,105620.0,1.50863628]
[1749309767955,0.22475338,105630.0,105620.0,1.48970093]
[1749309768219,0.22475338,105630.0,105620.0,1.49916883]
[1749309768432,0.22475338,105630.0,105620.0,1.50863664]
[1749309768640,0.20702456,105630.0,105620.0,1.50863664]
[1749309768858,0.2247534,105630.0,105620.0,1.50863664]
[1749309769091,0.23067489,105630.0,105620.0,1.50863664]
[1749309769334,0.23067489,105630.0,105620.0,1.51810436]
[1749309769581,0.24014171,105630.0,105620.0,1.53703935]
[1749309769799,0.23718096,105630.0,105620.0,1.53703953]
[1749309770061,0.24014175,105630.0,105620.0,1.53703953]
[1749309770274,0.24014178,105630.0,105620.0,1.53703908]
[1749309770497,0.21945213,105630.0,105620.0,1.53703908]
[1749309770751,0.22241288,105630.0,105620.0,1.55343908]
[1749309770967,0.2401417,105630.0,105620.0,1.55343908]
[1749309771514,0.23718085,105630.0,105620.0,1.55343908]
[1749309771929,0.23717997,105630.0,105620.0,1.55343908]
[1749309772350,0.23718012,105630.0,105620.0,1.56903908]
[1749309772756,0.06677344,105630.0,105620.0,1.56903863]
[1749309772940,0.26558058,105630.0,105620.0,1.56903863]
[1749309773208,0.24785259,105630.0,105620.0,1.56903863]
[1749309773418,0.26558105,105630.0,105620.0,1.55343863]
[1749309773637,0.26558112,105630.0,105620.0,1.55343863]
[1749309773848,0.24785259,105630.0,105620.0,1.51810382]
[1749309774271,0.26558083,105630.0,105620.0,1.51810382]
[1749309775454,0.23838604,105630.0,105620.0,1.51810382]
[1749309775656,0.25611441,105630.0,105620.0,1.51810382]
[1749309775866,0.23838604,105630.0,105620.0,1.52757127]
[1749309776077,0.25611458,105630.0,105620.0,1.52757127]
[1749309776285,0.23838604,105630.0,105620.0,1.52757127]
[1749309776483,0.25611456,105630.0,105620.0,1.50863628]
[1749309776904,0.25611477,105630.0,105620.0,1.50863628]
[1749309777209,0.23838604,105630.0,105620.0,1.50863628]
[1749309777411,0.23838604,105630.0,105620.0,1.51810382]
[1749309777412,0.25611475,105630.0,105620.0,1.51810382]
[1749309777620,0.24664793,105630.0,105620.0,1.51810382]
[1749309777824,0.24664796,105630.0,105620.0,1.51810382]
[1749309778032,0.22771405,105630.0,105620.0,0.91922286]
[1749309778317,0.66746687,105630.0,105620.0,1.30030286]
[1749309778513,1.10386666,105630.0,105620.0,1.30030286]
[1749309778717,1.11050831,105630.0,105620.0,1.30030286]
[1749309778918,1.10386187,105630.0,105620.0,1.30030286]
[1749309779042,1.08613799,105630.0,105620.0,1.29930286]
[1749309779242,1.10090077,105630.0,105620.0,1.29830286]
[1749309779651,1.11050832,105630.0,105620.0,1.29830286]
[1749309779849,1.11050832,105630.0,105620.0,1.00698286]
[1749309780130,1.11050832,105630.0,105620.0,1.29830286]
[1749309780596,1.09278444,105630.0,105620.0,1.29830286]
[1749309780841,1.09278439,105630.0,105620.0,1.29830286]
[1749309781065,1.08317689,105630.0,105620.0,1.29830286]
[1749309781289,1.1075453,105630.0,105620.0,1.29830286]
[1749309781536,1.08613818,105630.0,105620.0,1.29830286]
[1749309781759,1.08613818,105630.0,105620.0,0.67162286]
[1749309781760,1.11047433,105630.0,105620.0,0.67162286]
[1749309781980,1.11047433,105630.0,105620.0,0.96294286]
[1749309782414,1.11047434,105630.0,105620.0,0.96294286]
[1749309782635,1.10383723,105630.0,105620.0,0.96294286]
[1749309782855,1.11047437,105630.0,105620.0,0.96294286]
[1749309783082,1.1104744,105630.0,105620.0,0.96294286]
[1749309783308,1.11047436,105630.0,105620.0,0.96294286]
[1749309783538,1.11047389,105630.0,105620.0,0.96294286]
[1749309783767,1.09277481,105630.0,105620.0,0.96294286]
[1749309783981,1.11046067,105630.0,105620.0,0.96294286]
[1749309784207,1.10749938,105630.0,105620.0,0.96294286]
[1749309784402,1.08613818,105630.0,105620.0,0.69132]
[1749309784614,1.0927716,105630.0,105620.0,0.69132]
[1749309784828,1.09277158,105630.0,105620.0,0.69132]
[1749309785039,1.08317689,105630.0,105620.0,0.69132]
[1749309785241,1.11046073,105630.0,105620.0,0.69132]
[1749309785451,1.11045874,105630.0,105620.0,0.69132]
[1749309785664,1.08980977,105630.0,105620.0,0.69132]
[1749309785914,1.09277106,105630.0,105620.0,0.69132]
[1749309786127,1.11045891,105630.0,105620.0,0.69132]
[1749309786337,1.09277121,105630.0,105620.0,0.69132]
[1749309786543,1.10382629,105630.0,105620.0,0.69132]
[1749309786763,1.08613818,105630.0,105620.0,0.69132]
[1749309786976,1.11046021,105630.0,105620.0,0.69132]
[1749309787407,1.11046022,105630.0,105620.0,0.69132]
[1749309787584,1.11046022,105630.0,105620.0,0.29132]
[1749309788010,1.08317689,105630.0,105620.0,0.69132]
[1749309788510,1.08613815,105630.0,105620.0,0.69132]
[1749309788726,1.10086331,105630.0,105620.0,0.69132]
[1749309788950,1.10382642,105630.0,105620.0,0.69132]
[1749309789170,1.10086518,105630.0,105620.0,0.69132]
[1749309789384,1.10382644,105630.0,105620.0,0.69132]
[1749309789837,1.10382646,105630.0,105620.0,0.69132]
[1749309790048,1.08317689,105630.0,105620.0,0.69132]
[1749309790255,1.10382647,105630.0,105620.0,0.69132]
[1749309790668,1.10382662,105630.0,105620.0,0.69132]
[1749309790875,1.10382547,105630.0,105620.0,0.69132]
[1749309791089,1.10382547,105630.0,105620.0,0.53988105]
[1749309791090,0.59903439,105630.0,105620.0,0.53988105]
[1749309791299,0.59607436,105630.0,105620.0,0.53988105]
[1749309791519,0.57838568,105630.0,105620.0,0.54934841]
[1749309791718,0.57838568,105630.0,105620.0,0.94934841]
[1749309793375,0.57838568,105630.0,105620.0,0.9304136]
[1749309793655,0.56891913,105630.0,105620.0,0.9304136]
[1749309794038,0.58661673,105630.0,105620.0,0.9304136]
[1749309794237,0.99030909,105630.0,105620.0,0.9304136]
[1749309794480,0.97261123,105630.0,105620.0,0.9304136]
[1749309794679,0.98084221,105630.0,105620.0,0.9304136]
[1749309794917,0.55945231,105630.0,105620.0,0.9304136]
[1749309795126,0.57714871,105630.0,105620.0,0.9304136]
[1749309795338,0.57714716,105630.0,105620.0,0.9304136]
[1749309795588,0.57714829,105630.0,105620.0,0.9304136]
[1749309795805,0.57714848,105630.0,105620.0,0.9304136]
[1749309796031,0.57714895,105630.0,105620.0,0.9304136]
[1749309796255,0.97137405,105630.0,105620.0,0.96294286]
[1749309796476,0.96957741,105630.0,105620.0,0.96294286]
[1749309796700,1.00563723,105630.0,105620.0,0.96294286]
[1749309796918,1.00563702,105630.0,105620.0,0.96294286]
[1749309797147,1.00563617,105630.0,105620.0,0.96294286]
[1749309797367,1.00563612,105630.0,105620.0,0.96294286]
[1749309797628,1.00563612,105630.0,105620.0,0.67162286]
[1749309797856,1.50572776,105630.0,105620.0,0.96294286]
[1749309798080,1.48506899,105630.0,105620.0,0.96294286]
[1749309798317,1.10570982,105630.0,105620.0,0.96294286]
[1749309798541,1.50572698,105630.0,105620.0,0.96294286]
[1749309798779,1.49466654,105630.0,105620.0,0.96294286]
[1749309799006,1.51236318,105630.0,105620.0,0.96294286]
[1749309799506,1.10880093,105630.0,105620.0,0.96294286]
[1749309799719,1.10880057,105630.0,105620.0,0.96294286]
[1749309799920,1.10880066,105630.0,105620.0,0.96294286]
[1749309800066,1.09110429,105630.0,105620.0,0.96294286]
[1749309800274,1.108801,105630.0,105620.0,0.96294286]
[1749309800471,1.08150674,105630.0,105620.0,0.96294286]
[1749309800885,1.10880131,105630.0,105620.0,0.96294286]
[1749309801091,1.1088013,105630.0,105620.0,0.96294286]
[1749309801511,1.10880193,105630.0,105620.0,0.96294286]
[1749309801718,1.091105,105630.0,105620.0,0.96294286]
[1749309801923,1.10880359,105630.0,105620.0,0.96294286]
[1749309802140,1.08446803,105630.0,105620.0,0.69132]
[1749309802270,1.10880405,105630.0,105620.0,0.69132]
[1749309802496,1.10880433,105630.0,105620.0,0.69132]
[1749309803101,1.10880557,105630.0,105620.0,0.69132]
[1749309803320,1.10880832,105630.0,105620.0,0.69132]
[1749309803527,1.10880833,105630.0,105620.0,0.69132]
[1749309803726,0.69538683,105630.0,105620.0,0.69132]
[1749309803943,1.10880833,105630.0,105620.0,0.69132]
[1749309804690,1.10217721,105630.0,105620.0,0.69132]
[1749309804902,1.10585686,105630.0,105620.0,0.69132]
[1749309805268,1.1021772,105630.0,105620.0,0.29132]
[1749309805471,1.08814768,105630.0,105620.0,0.29132]
[1749309805674,1.10217721,105630.0,105620.0,0.29132]
[1749309805976,1.10881815,105630.0,105620.0,0.69132]
[1749309806358,1.10217721,105630.0,105620.0,0.69132]
[1749309806570,1.10881814,105630.0,105620.0,0.69132]
[1749309806982,1.10585909,105630.0,105620.0,0.69132]
[1749309807176,1.08814823,105630.0,105620.0,0.69132]
[1749309807450,1.08150674,105630.0,105620.0,0.69132]
[1749309807576,1.10882016,105630.0,105620.0,0.69132]
[1749309807987,0.70499821,105630.0,105620.0,0.98352]
[1749309808182,1.10882016,105630.0,105620.0,0.98352]
[1749309808386,1.10217867,105630.0,105620.0,0.98352]
[1749309808583,1.10882855,105630.0,105620.0,0.98352]
[1749309808810,1.08446803,105630.0,105620.0,0.98352]
[1749309809090,1.06906803,105630.0,105620.0,0.98352]
[1749309809294,1.05981193,105630.0,105620.0,0.98352]
[1749309809498,1.07752847,105630.0,105620.0,0.98352]
[1749309809904,1.07752847,105630.0,105620.0,0.98206221]
[1749309810119,1.07456884,105630.0,105620.0,0.98206221]
[1749309810246,1.07088618,105630.0,105620.0,0.98206221]
[1749309810449,1.05316799,105630.0,105620.0,0.98206221]
[1749309810648,1.07456921,105630.0,105620.0,0.98206221]
[1749309810874,1.05685105,105630.0,105620.0,0.98206221]
[1749309811074,1.07753032,105630.0,105620.0,0.98206221]
[1749309811314,1.07505032,105630.0,105620.0,0.98206221]
[1749309811961,1.07504983,105630.0,105620.0,0.98206221]
[1749309812178,1.068406,105630.0,105620.0,0.98206221]
[1749309812387,1.05068789,105630.0,105620.0,0.98206221]
[1749309812890,1.04772674,105630.0,105620.0,0.98206221]
[1749309813060,1.05068788,105630.0,105620.0,0.98206221]
[1749309813323,1.05733154,105630.0,105620.0,0.98206221]
[1749309813670,1.05733203,105630.0,105620.0,0.98206221]
[1749309813919,1.05437081,105630.0,105620.0,0.68986221]
[1749309814124,1.05733203,105630.0,105620.0,0.68986221]
[1749309814289,1.05068796,105630.0,105620.0,0.68986221]
[1749309814486,1.05733185,105630.0,105620.0,0.68986221]
[1749309815478,1.0543706,105630.0,105620.0,0.68986221]
[1749309815733,1.05068796,105630.0,105620.0,0.68986221]
[1749309816132,1.05733202,105630.0,105620.0,0.68986221]
[1749309816340,1.05437079,105630.0,105620.0,0.68986221]
[1749309816607,1.05733201,105630.0,105620.0,0.68986221]
[1749309816812,1.05733201,105630.0,105620.0,0.77954221]
[1749309817027,1.05733201,105630.0,105620.0,0.37954221]
[1749309817238,1.05733259,105630.0,105620.0,0.37954221]
[1749309817452,1.05437125,105630.0,105620.0,0.37954221]
[1749309817671,1.05733246,105630.0,105620.0,0.77954221]
[1749309817897,1.05733257,105630.0,105620.0,0.77954221]
[1749309818583,1.05733209,105630.0,105620.0,0.77954221]
[1749309819027,1.08198795,105630.0,105620.0,0.78096]
[1749309819292,1.08863266,105630.0,105620.0,0.78096]
[1749309819514,1.08198796,105630.0,105620.0,0.78096]
[1749309819732,1.08863266,105630.0,105620.0,0.78096]
[1749309819952,1.08863266,105630.0,105620.0,1.07316]
[1749309820294,1.08863265,105630.0,105620.0,1.07316]
[1749309820520,1.05733265,105630.0,105620.0,1.07316]
[1749309820959,1.0573327,105630.0,105620.0,1.07316]
[1749309821200,0.55711127,105630.0,105620.0,1.07316]
[1749309821433,0.55697213,105630.0,105620.0,1.31325342]
[1749309821673,0.21993314,105630.0,105620.0,1.31325351]
[1749309821901,0.55697213,105630.0,105620.0,1.31325351]
[1749309823821,0.55697213,105630.0,105620.0,1.30378588]
[1749309824053,0.96062821,105630.0,105620.0,1.30378588]
[1749309824294,0.95116139,105630.0,105620.0,1.10496]
[1749309824970,0.96887254,105630.0,105620.0,1.08936]
[1749309825221,0.95412238,105630.0,105620.0,1.07316]
[1749309825456,0.95412238,105630.0,105620.0,0.78188]
[1749309825457,1.09727213,105630.0,105620.0,0.78188]
[1749309825705,1.10023325,105630.0,105620.0,1.07312]
[1749309825921,1.10023433,105630.0,105620.0,1.07312]
[1749309826440,1.07956087,105630.0,105620.0,1.07312]
[1749309826684,1.10023645,105630.0,105620.0,1.07312]
[1749309826923,1.10023718,105630.0,105620.0,1.07312]
[1749309827128,1.10023716,105630.0,105620.0,1.07312]
[1749309827340,1.10037066,105630.0,105620.0,0.78188]
[1749309827547,1.10037066,105630.0,105620.0,1.07312]
[1749309827750,1.10037255,105630.0,105620.0,1.07312]
[1749309828184,1.09741135,105630.0,105620.0,1.07312]
[1749309828396,1.08265554,105630.0,105620.0,1.07312]
[1749309828823,1.10037433,105630.0,105620.0,1.07312]
[1749309829030,1.10037461,105630.0,105620.0,1.07312]
[1749309829265,1.10701901,105630.0,105620.0,1.07312]
[1749309829507,1.08265557,105630.0,105620.0,1.07312]
[1749309829729,1.08633859,105630.0,105620.0,1.07312]
[1749309829987,1.10405662,105630.0,105620.0,1.07312]
[1749309830201,1.10701787,105630.0,105620.0,1.07312]
[1749309831160,5.62896615,105630.0,105620.0,1.07312]
[1749309831385,5.61789246,105630.0,105620.0,1.07312]
[1749309831587,5.65829519,105630.0,105620.0,1.07312]
[1749309831796,5.65533371,105630.0,105620.0,0.78092]
[1749309831946,5.65533358,105630.0,105620.0,0.38092]
[1749309832190,5.65829502,105630.0,105620.0,0.38092]
[1749309832859,5.65829303,105630.0,105620.0,0.38092]
[1749309833248,5.63560783,105630.0,105620.0,0.38092]
[1749309833446,5.64868532,105630.0,105620.0,0.38092]
[1749309833655,5.63560783,105630.0,105620.0,0.38092]
[1749309834078,5.23181835,105630.0,105620.0,0.38092]
[1749309834961,5.22221339,105630.0,105620.0,0.38092]
[1749309835181,5.21410119,105630.0,105620.0,0.38092]
[1749309835404,0.64686618,105630.0,105620.0,0.38092]
[1749309835628,0.66161714,105630.0,105620.0,0.41192]
[1749309835877,1.06540668,105630.0,105620.0,0.41192]
[1749309836091,1.06836777,105630.0,105620.0,0.81192]
[1749309836318,1.0683669,105630.0,105620.0,0.81192]
[1749309836534,1.06836687,105630.0,105620.0,0.81192]
[1749309836753,1.06836676,105630.0,105620.0,0.81192]
[1749309836967,1.05065543,105630.0,105620.0,0.81192]
[1749309837172,1.04769433,105630.0,105620.0,0.81192]
[1749309837381,1.06836492,105630.0,105620.0,0.79642]
[1749309837628,1.06836492,105630.0,105620.0,1.10412]
[1749309838083,1.0683663,105630.0,105620.0,1.10412]
[1749309838267,1.06836641,105630.0,105620.0,1.10412]
[1749309838513,1.05065548,105630.0,105620.0,1.10412]
[1749309838719,1.06836652,105630.0,105620.0,1.10412]
[1749309838871,1.05065552,105630.0,105620.0,1.10412]
[1749309839083,1.05065551,105630.0,105620.0,1.10412]
[1749309839286,1.06836652,105630.0,105620.0,1.10412]
[1749309840315,1.068369,105630.0,105620.0,1.10412]
[1749309840516,1.06540782,105630.0,105620.0,1.10412]
[1749309840765,1.06836974,105630.0,105620.0,1.10412]
[1749309840919,1.06540881,105630.0,105620.0,1.10412]
[1749309841121,1.06836977,105630.0,105620.0,1.10412]
[1749309841370,1.06836986,105630.0,105620.0,1.10412]
[1749309841601,1.05065544,105630.0,105620.0,1.10412]
[1749309841810,1.06836987,105630.0,105620.0,1.10412]
[1749309842207,1.06836992,105630.0,105620.0,1.10412]
[1749309842340,1.04769433,105630.0,105620.0,1.10412]
[1749309842547,1.05065544,105630.0,105620.0,1.10412]
[1749309842749,1.06836994,105630.0,105620.0,1.10412]
[1749309842953,1.06836994,105630.0,105620.0,1.08862]
[1749309843156,1.06836994,105630.0,105620.0,1.07312]
[1749309843366,1.06837132,105630.0,105620.0,1.07312]
[1749309843593,1.06836995,105630.0,105620.0,1.07312]
[1749309843799,1.05065551,105630.0,105620.0,1.07312]
[1749309844009,1.06836909,105630.0,105620.0,1.07312]
[1749309844221,1.05065551,105630.0,105620.0,1.07312]
[1749309844428,1.0683687,105630.0,105620.0,1.07312]
[1749309845075,1.05065552,105630.0,105620.0,1.07312]
[1749309845374,1.06836812,105630.0,105620.0,1.07312]
[1749309845584,1.06836841,105630.0,105620.0,1.07312]
[1749309845794,1.06836817,105630.0,105620.0,1.08872]
[1749309845963,1.05065549,105630.0,105620.0,1.10502]
[1749309846195,1.06836824,105630.0,105620.0,1.10502]
[1749309847344,1.0506555,105630.0,105620.0,1.10502]
[1749309847560,1.06836826,105630.0,105620.0,1.10502]
[1749309847938,1.04769433,105630.0,105620.0,1.10502]
[1749309848139,1.06836826,105630.0,105620.0,1.07312]
[1749309849133,1.06836826,105630.0,105620.0,1.07166809]
[1749309849336,1.0683684,105630.0,105620.0,1.07166809]
[1749309849542,1.06540722,105630.0,105620.0,1.07166809]
[1749309849748,1.06836837,105630.0,105620.0,1.07166809]
[1749309850435,1.06836996,105630.0,105620.0,1.07166809]
[1749309850928,1.06837005,105630.0,105620.0,1.07166809]
[1749309851176,1.06836995,105630.0,105620.0,1.07166809]
[1749309851385,1.06836993,105630.0,105620.0,1.07166809]
[1749309851592,1.06836992,105630.0,105620.0,1.07166809]
[1749309851794,1.06837397,105630.0,105620.0,1.07166809]
[1749309852212,1.07502008,105630.0,105620.0,1.07166809]
[1749309852747,1.0750199,105630.0,105620.0,1.07166809]
[1749309853167,1.07501989,105630.0,105620.0,1.07166809]
[1749309853619,1.06837502,105630.0,105620.0,1.07166809]
[1749309853820,1.07501983,105630.0,105620.0,1.07166809]
[1749309854040,1.07205864,105630.0,105620.0,1.07166809]
[1749309854242,1.05730294,105630.0,105620.0,1.07166809]
[1749309854442,1.05434174,105630.0,105620.0,1.07166809]
[1749309854653,1.06838192,105630.0,105620.0,1.07166809]
[1749309854839,1.07502933,105630.0,105620.0,1.07166809]
[1749309855210,1.07502936,105630.0,105620.0,1.07166809]
[1749309855599,1.07503016,105630.0,105620.0,1.07166809]
[1749309855801,1.07503025,105630.0,105620.0,1.07166809]
[1749309856043,1.07503023,105630.0,105620.0,1.07166809]
[1749309856208,1.04769433,105630.0,105620.0,1.07166809]
[1749309856427,1.06542141,105630.0,105620.0,1.07166809]
[1749309856656,1.06838257,105630.0,105620.0,1.07166809]
[1749309856855,1.07503021,105630.0,105620.0,1.10276809]
[1749309857052,1.07502994,105630.0,105620.0,1.10276809]
[1749309857255,1.07502915,105630.0,105620.0,1.10276809]
[1749309857456,1.06838116,105630.0,105620.0,1.10276809]
[1749309857663,1.07206682,105630.0,105620.0,1.10276809]
[1749309857892,1.07502797,105630.0,105620.0,1.10276809]
[1749309858097,1.05730252,105630.0,105620.0,1.10276809]
[1749309858314,1.07206764,105630.0,105620.0,1.10276809]
[1749309858518,1.07502881,105630.0,105620.0,1.10276809]
[1749309858921,1.07502948,105630.0,105620.0,1.10276809]
[1749309859129,1.07502974,105630.0,105620.0,1.10276809]
[1749309859442,1.04763537,105630.0,105620.0,1.10276809]
[1749309859647,1.0542829,105630.0,105620.0,1.10276809]
[1749309859852,1.07497081,105630.0,105620.0,1.10276809]
[1749309860486,1.07497081,105630.0,105620.0,1.07166809]
[1749309860914,1.07497051,105630.0,105620.0,1.07166809]
[1749309861074,1.07200854,105630.0,105620.0,1.07166809]
[1749309861302,1.05428258,105630.0,105620.0,1.07166809]
[1749309861522,1.06536129,105630.0,105620.0,1.07166809]
[1749309861731,1.05428259,105630.0,105620.0,1.07166809]
[1749309861933,1.07496969,105630.0,105620.0,1.07166809]
[1749309862534,1.07201294,105630.0,105620.0,1.07166809]
[1749309862745,1.05428425,105630.0,105620.0,1.07166809]
[1749309862948,1.06536572,105630.0,105620.0,1.07166809]
[1749309863154,1.05724542,105630.0,105620.0,1.07166809]
[1749309863352,1.05428425,105630.0,105620.0,1.07166809]
[1749309863565,1.07497577,105630.0,105620.0,1.07166809]
[1749309863968,1.04763537,105630.0,105620.0,1.07166809]
[1749309864172,1.05724541,105630.0,105620.0,1.07166809]
[1749309864375,1.04763537,105630.0,105620.0,1.07166809]
[1749309864587,1.07498878,105630.0,105620.0,1.07166809]
[1749309864791,1.06679658,105630.0,105620.0,1.07166809]
[1749309865010,1.08678772,105630.0,105620.0,1.07166809]
[1749309865226,1.10083622,105630.0,105620.0,1.07166809]
[1749309865426,1.0867877,105630.0,105620.0,1.07166809]
[1749309865632,1.10748844,105630.0,105620.0,1.07166809]
[1749309865990,1.10748644,105630.0,105620.0,1.07166809]
[1749309866189,1.10748641,105630.0,105620.0,1.07166809]
[1749309866389,1.10748625,105630.0,105620.0,1.07166809]
[1749309866982,1.08678708,105630.0,105620.0,1.07166809]
[1749309867225,1.08678707,105630.0,105620.0,1.07166809]
[1749309867420,1.1074862,105630.0,105620.0,1.07166809]
[1749309867825,1.10748527,105630.0,105620.0,1.07166809]
[1749309868054,1.10748493,105630.0,105620.0,1.07166809]
[1749309868389,1.10748494,105630.0,105620.0,1.07166809]
[1749309868588,1.10083359,105630.0,105620.0,1.07166809]
[1749309868805,1.08974798,105630.0,105620.0,1.07166809]
[1749309869051,1.107485,105630.0,105620.0,1.07166809]